{"text_format":"1","workbook":"xlsx","n_sheets":8,"sheets":["AGUA","ENERGÍA","GAS","TELEFONÍA FIJA","Listas","INSTRUCCIONES","Hoja3","Hoja2"],"not_rendered":{"charts":0,"images":1,"macros":0,"external_links":0,"defined_names":9,"comments":4,"pivot_tables":0},"unopened":[],"bounds":{"document_bytes":16777216,"sheet_cells":100000,"rows_first":2000,"rows_last":500,"rows_between":2000,"halvings":0,"cell_chars":16384,"cell_head_chars":4096},"cells_cut":0,"cells_raw":0,"read":"whole","date_system":"1900"}

{"sheet":"AGUA","index":0,"n_rows":52,"n_cols":24,"rows_kept":52,"cut":false,"hidden":false,"merged":[[6,4,7,4],[6,22,7,22],[6,18,7,18],[2,22,2,23],[51,0,55,23],[0,0,2,0],[50,22,50,23],[50,0,50,7],[6,15,7,15],[6,19,7,19],[6,20,7,20],[6,23,7,23],[6,8,7,8],[6,9,6,10],[6,16,7,16],[5,6,5,7],[5,9,5,21],[6,13,6,14],[6,3,7,3],[6,21,7,21],[6,6,7,6],[0,1,2,21],[6,17,7,17],[6,1,7,1],[4,2,4,23],[3,2,3,23],[6,7,7,7],[5,0,5,5],[6,0,7,0],[6,5,7,5],[6,2,7,2],[6,11,6,12],[5,22,5,23]]}
[null,"PROCESO SERVICIOS ADMINISTRATIVOS\n\nINFORME DE SERVICIOS PUBLICOS",null,null,null,null,null,null,null,null,null,null,null,null,null,null,null,null,null,null,null,null,"F1.P59.SA","2020-08-26"]
[null,null,null,null,null,null,null,null,null,null,null,null,null,null,null,null,null,null,null,null,null,null,"Versión 1","Página 1 de 1"]
[null,null,null,null,null,null,null,null,null,null,null,null,null,null,null,null,null,null,null,null,null,null,"Clasificación de la Información\nPÚBLICA"]
["REGIONAL :  ",null,"INFORME DE SERVICIOS PUBLICOS - ACUEDUCTO"]
["MES REPORTADO: "]
["DATOS GENERALES ",null,null,null,null,null,"PERIODO DE FACTURACIÓN",null,"CONSUMO   ","VALORES ($)"]
["\nNOMBRE REGIONAL, CENTRO ZONAL  O INMUEBLE","DIRECCION","\nCONDICIONES DEL INMUEBLE","\nPERIOCIDAD DE LA FACTURACION","NÚMERO DE FACTURA","\nFECHA PAGO OPORTUNO  (DD/MM/AAAA)","\nPERIODO FACTURADO                (DD/MM/AAAA-DD/MM/AAAA)","MES FACTURADO","\nCONSUMO                      Mᶾ","ACUEDUCTO",null,"ALCANTARILLADO",null,"ASEO",null,"\nDEUDA ANTERIOR \n($)","\n\nINTERESES             ($)","\n\nRECONEXIÓN              ($)","CONTRIBUCIONES,           SUBSIDIOS, TASAS, COMPENSACIONES Y AJUSTES                        ($)","\n\nIMPUESTOS              ($)","CARGOS POR CONTADORES Y  OBRAS DEL SERVICIO ($)","VALOR TOTAL FACTURA\n($)","EMPRESA PROVEEDORA DEL SERVICIO ","OBSERVACIONES"]
[null,null,null,null,null,null,null,null,null,"CARGO FIJO                    ($)","CONSUMO                        ($)","CARGO FIJO                    ($)","CONSUMO                        ($)","CARGO FIJO                    ($)","CONSUMO                        ($)"]
[null,null,null,null,null,null,null,null,null,null,null,null,null,null,null,null,null,null,null,null,null,{"$f":"SUM(J9:U9)","v":0}]
[null,null,null,null,null,null,null,null,null,null,null,null,null,null,null,null,null,null,null,null,null,0]
[null,null,null,null,null,null,null,null,null,null,null,null,null,null,null,null,null,null,null,null,null,0]
[null,null,null,null,null,null,null,null,null,null,null,null,null,null,null,null,null,null,null,null,null,0]
[null,null,null,null,null,null,null,null,null,null,null,null,null,null,null,null,null,null,null,null,null,0]
[null,null,null,null,null,null,null,null,null,null,null,null,null,null,null,null,null,null,null,null,null,0]
[null,null,null,null,null,null,null,null,null,null,null,null,null,null,null,null,null,null,null,null,null,0]
[null,null,null,null,null,null,null,null,null,null,null,null,null,null,null,null,null,null,null,null,null,0]
[null,null,null,null,null,null,null,null,null,null,null,null,null,null,null,null,null,null,null,null,null,0]
[null,null,null,null,null,null,null,null,null,null,null,null,null,null,null,null,null,null,null,null,null,0]
[null,null,null,null,null,null,null,null,null,null,null,null,null,null,null,null,null,null,null,null,null,0]
[null,null,null,null,null,null,null,null,null,null,null,null,null,null,null,null,null,null,null,null,null,0]
[null,null,null,null,null,null,null,null,null,null,null,null,null,null,null,null,null,null,null,null,null,0]
[null,null,null,null,null,null,null,null,null,null,null,null,null,null,null,null,null,null,null,null,null,0]
[null,null,null,null,null,null,null,null,null,null,null,null,null,null,null,null,null,null,null,null,null,0]
[null,null,null,null,null,null,null,null,null,null,null,null,null,null,null,null,null,null,null,null,null,0]
[null,null,null,null,null,null,null,null,null,null,null,null,null,null,null,null,null,null,null,null,null,0]
[null,null,null,null,null,null,null,null,null,null,null,null,null,null,null,null,null,null,null,null,null,0]
[null,null,null,null,null,null,null,null,null,null,null,null,null,null,null,null,null,null,null,null,null,0]
[null,null,null,null,null,null,null,null,null,null,null,null,null,null,null,null,null,null,null,null,null,0]
[null,null,null,null,null,null,null,null,null,null,null,null,null,null,null,null,null,null,null,null,null,0]
[null,null,null,null,null,null,null,null,null,null,null,null,null,null,null,null,null,null,null,null,null,0]
[null,null,null,null,null,null,null,null,null,null,null,null,null,null,null,null,null,null,null,null,null,0]
[null,null,null,null,null,null,null,null,null,null,null,null,null,null,null,null,null,null,null,null,null,0]
[null,null,null,null,null,null,null,null,null,null,null,null,null,null,null,null,null,null,null,null,null,0]
[null,null,null,null,null,null,null,null,null,null,null,null,null,null,null,null,null,null,null,null,null,0]
[null,null,null,null,null,null,null,null,null,null,null,null,null,null,null,null,null,null,null,null,null,0]
[null,null,null,null,null,null,null,null,null,null,null,null,null,null,null,null,null,null,null,null,null,0]
[null,null,null,null,null,null,null,null,null,null,null,null,null,null,null,null,null,null,null,null,null,0]
[null,null,null,null,null,null,null,null,null,null,null,null,null,null,null,null,null,null,null,null,null,0]
[null,null,null,null,null,null,null,null,null,null,null,null,null,null,null,null,null,null,null,null,null,0]
[null,null,null,null,null,null,null,null,null,null,null,null,null,null,null,null,null,null,null,null,null,0]
[null,null,null,null,null,null,null,null,null,null,null,null,null,null,null,null,null,null,null,null,null,0]
[null,null,null,null,null,null,null,null,null,null,null,null,null,null,null,null,null,null,null,null,null,0]
[null,null,null,null,null,null,null,null,null,null,null,null,null,null,null,null,null,null,null,null,null,0]
[null,null,null,null,null,null,null,null,null,null,null,null,null,null,null,null,null,null,null,null,null,0]
[null,null,null,null,null,null,null,null,null,null,null,null,null,null,null,null,null,null,null,null,null,0]
[null,null,null,null,null,null,null,null,null,null,null,null,null,null,null,null,null,null,null,null,null,0]
[null,null,null,null,null,null,null,null,null,null,null,null,null,null,null,null,null,null,null,null,null,0]
[null,null,null,null,null,null,null,null,null,null,null,null,null,null,null,null,null,null,null,null,null,0]
[null,null,null,null,null,null,null,null,null,null,null,null,null,null,null,null,null,null,null,null,null,0]
[null,null,null,null,null,null,null,null,null,null,null,null,null,null,null,null,null,null,null,null,null,0]
["TOTALES",null,null,null,null,null,null,null,{"$f":"SUM(I9:I50)","v":0},0,0,0,0,0,0,0,0,null,0,0,0,0]
["Antes de imprimir este documento… piense en el medio ambiente!  \n     Cualquier copia impresa de este documento se considera como COPIA NO CONTROLADA."]

{"sheet":"ENERGÍA","index":1,"n_rows":52,"n_cols":24,"rows_kept":52,"cut":false,"hidden":false,"merged":[[5,0,5,5],[6,21,7,21],[0,0,2,0],[0,1,2,21],[2,22,2,23],[51,0,55,23],[3,2,3,23],[4,2,4,23],[6,3,7,3],[6,4,7,4],[6,5,7,5],[6,8,7,8],[6,9,6,10],[6,22,7,22],[6,23,7,23],[6,6,7,6],[6,19,7,19],[6,17,7,17],[5,9,5,21],[5,6,5,7],[5,22,5,23],[50,0,50,7],[6,18,7,18],[6,16,7,16],[6,7,7,7],[6,0,7,0],[6,2,7,2],[6,1,7,1],[50,22,50,23],[6,11,6,12],[6,13,6,14],[6,15,7,15],[6,20,7,20]]}
[null,"PROCESO SERVICIOS ADMINISTRATIVOS\n\nINFORME DE SERVICIOS PUBLICOS",null,null,null,null,null,null,null,null,null,null,null,null,null,null,null,null,null,null,null,null,"F1.P59.SA","2020-08-26"]
[null,null,null,null,null,null,null,null,null,null,null,null,null,null,null,null,null,null,null,null,null,null,"Versión 1","Página 1 de 1"]
[null,null,null,null,null,null,null,null,null,null,null,null,null,null,null,null,null,null,null,null,null,null,"Clasificación de la Información\nPÚBLICA"]
["REGIONAL :  ",null,"INFORME DE SERVICIOS PUBLICOS - ENERGÍA"]
["MES REPORTADO: "]
["DATOS GENERALES ",null,null,null,null,null,"PERIODO FACTURACIÓN",null,"CONSUMO   ","VALORES ($)"]
["\nNOMBRE REGIONAL, CENTRO ZONAL  O INMUEBLE","DIRECCIÓN","CONDICIONES DEL INMUEBLE","\nPERIOCIDAD DE LA FACTURACION","NÚMERO DE FACTURA","\nFECHA PAGO OPORTUNO (DD/MM/AAAA)","\nPERIODO FACTURADO               (DD/MM/AAAA - DD/MM/AAAA)","\nMES FACTURADO","\nCONSUMO                      Kw","ENERGÍA",null,"ALUMBRADO PÚBLICO",null,"ASEO y ALCANTARILLADO",null,"DEUDA ANTERIOR \n($)","\nINTERESES             ($)","\nRECONEXIÓN              ($)","CONTRIBUCIONES,           SUBSIDIOS, TASAS, COMPENSACIONES Y AJUSTES ($)","\nIMPUESTOS         ($)","CARGOS POR CONTADORES Y  OBRAS DEL SERVICIO ($)","VALOR TOTAL FACTURA\n($)","\nEMPRESA PROVEEDORA DEL SERVICIO ","OBSERVACIONES"]
[null,null,null,null,null,null,null,null,null,"CARGO FIJO                    ($)","CONSUMO                        ($)","CARGO FIJO                    ($)","CONSUMO                        ($)","CARGO FIJO                    ($)","CONSUMO                        ($)"]
[null,null,null,null,null,null,null,null,null,null,null,null,null,null,null,null,null,null,null,null,null,{"$f":"SUM(J9:U9)","v":0}]
[null,null,null,null,null,null,null,null,null,null,null,null,null,null,null,null,null,null,null,null,null,{"$f":"SUM(J10:U10)","v":0}]
[null,null,null,null,null,null,null,null,null,null,null,null,null,null,null,null,null,null,null,null,null,0]
[null,null,null,null,null,null,null,null,null,null,null,null,null,null,null,null,null,null,null,null,null,{"$f":"SUM(J12:U12)","v":0}]
[null,null,null,null,null,null,null,null,null,null,null,null,null,null,null,null,null,null,null,null,null,0]
[null,null,null,null,null,null,null,null,null,null,null,null,null,null,null,null,null,null,null,null,null,0]
[null,null,null,null,null,null,null,null,null,null,null,null,null,null,null,null,null,null,null,null,null,0]
[null,null,null,null,null,null,null,null,null,null,null,null,null,null,null,null,null,null,null,null,null,0]
[null,null,null,null,null,null,null,null,null,null,null,null,null,null,null,null,null,null,null,null,null,0]
[null,null,null,null,null,null,null,null,null,null,null,null,null,null,null,null,null,null,null,null,null,0]
[null,null,null,null,null,null,null,null,null,null,null,null,null,null,null,null,null,null,null,null,null,0]
[null,null,null,null,null,null,null,null,null,null,null,null,null,null,null,null,null,null,null,null,null,0]
[null,null,null,null,null,null,null,null,null,null,null,null,null,null,null,null,null,null,null,null,null,0]
[null,null,null,null,null,null,null,null,null,null,null,null,null,null,null,null,null,null,null,null,null,0]
[null,null,null,null,null,null,null,null,null,null,null,null,null,null,null,null,null,null,null,null,null,0]
[null,null,null,null,null,null,null,null,null,null,null,null,null,null,null,null,null,null,null,null,null,0]
[null,null,null,null,null,null,null,null,null,null,null,null,null,null,null,null,null,null,null,null,null,0]
[null,null,null,null,null,null,null,null,null,null,null,null,null,null,null,null,null,null,null,null,null,0]
[null,null,null,null,null,null,null,null,null,null,null,null,null,null,null,null,null,null,null,null,null,0]
[null,null,null,null,null,null,null,null,null,null,null,null,null,null,null,null,null,null,null,null,null,0]
[null,null,null,null,null,null,null,null,null,null,null,null,null,null,null,null,null,null,null,null,null,0]
[null,null,null,null,null,null,null,null,null,null,null,null,null,null,null,null,null,null,null,null,null,0]
[null,null,null,null,null,null,null,null,null,null,null,null,null,null,null,null,null,null,null,null,null,0]
[null,null,null,null,null,null,null,null,null,null,null,null,null,null,null,null,null,null,null,null,null,0]
[null,null,null,null,null,null,null,null,null,null,null,null,null,null,null,null,null,null,null,null,null,0]
[null,null,null,null,null,null,null,null,null,null,null,null,null,null,null,null,null,null,null,null,null,0]
[null,null,null,null,null,null,null,null,null,null,null,null,null,null,null,null,null,null,null,null,null,0]
[null,null,null,null,null,null,null,null,null,null,null,null,null,null,null,null,null,null,null,null,null,0]
[null,null,null,null,null,null,null,null,null,null,null,null,null,null,null,null,null,null,null,null,null,0]
[null,null,null,null,null,null,null,null,null,null,null,null,null,null,null,null,null,null,null,null,null,0]
[null,null,null,null,null,null,null,null,null,null,null,null,null,null,null,null,null,null,null,null,null,0]
[null,null,null,null,null,null,null,null,null,null,null,null,null,null,null,null,null,null,null,null,null,0]
[null,null,null,null,null,null,null,null,null,null,null,null,null,null,null,null,null,null,null,null,null,0]
[null,null,null,null,null,null,null,null,null,null,null,null,null,null,null,null,null,null,null,null,null,0]
[null,null,null,null,null,null,null,null,null,null,null,null,null,null,null,null,null,null,null,null,null,0]
[null,null,null,null,null,null,null,null,null,null,null,null,null,null,null,null,null,null,null,null,null,0]
[null,null,null,null,null,null,null,null,null,null,null,null,null,null,null,null,null,null,null,null,null,0]
[null,null,null,null,null,null,null,null,null,null,null,null,null,null,null,null,null,null,null,null,null,0]
[null,null,null,null,null,null,null,null,null,null,null,null,null,null,null,null,null,null,null,null,null,0]
[null,null,null,null,null,null,null,null,null,null,null,null,null,null,null,null,null,null,null,null,null,0]
[null,null,null,null,null,null,null,null,null,null,null,null,null,null,null,null,null,null,null,null,null,0]
[null,null,null,null,null,null,null,null,null,null,null,null,null,null,null,null,null,null,null,null,null,0]
["TOTALES",null,null,null,null,null,null,null,{"$f":"SUM(I9:I50)","v":0},0,0,0,0,0,0,0,0,null,{"$f":"SUM(S9:S50)","v":0},{"$f":"SUM(T9:T50)","v":0},{"$f":"SUM(U9:U50)","v":0},{"$f":"SUM(V9:V50)","v":0}]
["Antes de imprimir este documento… piense en el medio ambiente!  \n     Cualquier copia impresa de este documento se considera como COPIA NO CONTROLADA."]

{"sheet":"GAS","index":2,"n_rows":28,"n_cols":17,"rows_kept":28,"cut":false,"hidden":false,"merged":[[27,0,31,16],[6,3,7,3],[6,4,7,4],[26,15,26,16],[6,9,7,9],[6,13,7,13],[6,14,7,14],[26,0,26,4],[6,5,7,5],[6,6,7,6],[6,7,7,7],[6,15,7,15],[0,1,2,14],[4,2,4,16],[3,2,3,16],[5,0,5,4],[6,2,7,2],[6,0,7,0],[5,15,5,16],[5,6,5,14],[6,16,7,16],[6,8,7,8],[6,11,7,11],[6,12,7,12],[6,10,7,10],[6,1,7,1],[2,15,2,16],[0,0,2,0]]}
[null,"PROCESO SERVICIOS ADMINISTRATIVOS\n\nINFORME DE SERVICIOS PUBLICOS",null,null,null,null,null,null,null,null,null,null,null,null,null,"F1.P59.SA","2020-08-26"]
[null,null,null,null,null,null,null,null,null,null,null,null,null,null,null,"Versión 1","Página 1 de 1"]
[null,null,null,null,null,null,null,null,null,null,null,null,null,null,null,"Clasificación de la Información\nPÚBLICA"]
["REGIONAL :  ",null,"INFORME DE SERVICIOS PÚBLICOS-GAS"]
["MES REPORTADO: "]
["DATOS GENERALES ",null,null,null,null,"CONSUMO   ","VALORES ($)"]
["\nNOMBRE REGIONAL, CENTRO ZONAL  O INMUEBLE","DIRECCION","CONDICIONES DEL INMUEBLE","NÚMERO DE FACTURA","\nFECHA PAGO OPORTUNO (DD/MM/AAAA)","\nCONSUMO MENSUAL Mᶾ","\nCARGO FIJO                    ($)","\nCONSUMO                   ($)","DEUDA ANTERIOR\n($)","\nINTERESES             ($)","\nRECONEXIÓN              ($)","CONTRIBUCIONES,           SUBSIDIOS, TASAS, COMPENSACIONES Y AJUSTES                        ($)","\nIMPUESTOS       ($)","CARGOS POR CONTADORES Y  OBRAS DEL SERVICIO ($)","\nVALOR TOTAL FACTURA \n($)","\nEMPRESA PROVEEDORA DEL SERVICIO ","OBSERVACIONES"]
[]
[null,null,null,null,null,null,null,null,null,null,null,null,null,null,{"$f":"SUM(G9:N9)","v":0}]
[null,null,null,null,null,null,null,null,null,null,null,null,null,null,0]
[null,null,null,null,null,null,null,null,null,null,null,null,null,null,0]
[null,null,null,null,null,null,null,null,null,null,null,null,null,null,0]
[null,null,null,null,null,null,null,null,null,null,null,null,null,null,0]
[null,null,null,null,null,null,null,null,null,null,null,null,null,null,0]
[null,null,null,null,null,null,null,null,null,null,null,null,null,null,0]
[null,null,null,null,null,null,null,null,null,null,null,null,null,null,0]
[null,null,null,null,null,null,null,null,null,null,null,null,null,null,0]
[null,null,null,null,null,null,null,null,null,null,null,null,null,null,0]
[null,null,null,null,null,null,null,null,null,null,null,null,null,null,0]
[null,null,null,null,null,null,null,null,null,null,null,null,null,null,0]
[null,null,null,null,null,null,null,null,null,null,null,null,null,null,0]
[null,null,null,null,null,null,null,null,null,null,null,null,null,null,0]
[null,null,null,null,null,null,null,null,null,null,null,null,null,null,0]
[null,null,null,null,null,null,null,null,null,null,null,null,null,null,0]
[null,null,null,null,null,null,null,null,null,null,null,null,null,null,0]
[null,null,null,null,null,null,null,null,null,null,null,null,null,null,0]
["TOTALES",null,null,null,null,{"$f":"SUM(F9:F26)","v":0},{"$f":"SUM(G9:G26)","v":0},0,0,0,null,0,0,{"$f":"SUM(N9:N26)","v":0},{"$f":"SUM(O9:O26)","v":0}]
["Antes de imprimir este documento… piense en el medio ambiente!  \n     Cualquier copia impresa de este documento se considera como COPIA NO CONTROLADA."]

{"sheet":"TELEFONÍA FIJA","index":3,"n_rows":32,"n_cols":20,"rows_kept":32,"cut":false,"hidden":false,"merged":[[0,0,2,0],[2,18,2,19],[31,0,34,19],[30,0,30,7],[30,17,30,19],[6,7,7,7],[6,3,7,3],[6,12,7,12],[6,14,7,14],[6,16,7,16],[6,0,7,0],[6,8,7,8],[6,9,7,9],[6,1,7,1],[0,1,2,17],[4,2,4,19],[3,2,3,19],[6,19,7,19],[6,10,7,10],[6,15,7,15],[6,11,7,11],[5,0,5,7],[5,8,5,16],[5,17,5,19],[6,4,7,4],[6,13,7,13],[6,2,7,2],[6,18,7,18],[6,17,7,17],[6,6,7,6],[6,5,7,5]]}
[null,"PROCESO SERVICIOS ADMINISTRATIVOS\n\nINFORME DE SERVICIOS PUBLICOS",null,null,null,null,null,null,null,null,null,null,null,null,null,null,null,null,"F1.P59.SA","2020-08-26"]
[null,null,null,null,null,null,null,null,null,null,null,null,null,null,null,null,null,null,"Versión 1","Página 1 de 1"]
[null,null,null,null,null,null,null,null,null,null,null,null,null,null,null,null,null,null,"Clasificación de la Información\nPÚBLICA "]
["REGIONAL :  ",null,"INFORME DE SERVICIOS PUBLICOS - TELEFONÍA FIJA"]
["MES REPORTADO: "]
["DATOS GENERALES ",null,null,null,null,null,null,null,"VALORES ($)"]
["NOMBRE REGIONAL, CENTRO ZONAL  O INMUEBLE","DIRECCION","CONDICIONES DEL INMUEBLE","NÚMERO DE TELÉFONO","NUMERO DE FACTURA","PERIODO FACTURADO               (DD/MM/AAAA - DD/MM/AAAA)","MES FACTURADO","FECHA PAGO OPORTUNO  (DD/MM/AAAA)","CARGO FIJO + BÁSICO                           ($)","CARGO VARIABLE  \n($)","DEUDA ANTERIOR \n($)","\nINTERNET      ($)","\nINTERESES             ($)","\nRECONEXIÓN              ($)","CONTRIBUCIONES,           SUBSIDIOS, TASAS, COMPENSACIONES Y AJUSTES                        ($)","\nIMPUESTOS         ($)","VALOR TOTAL FACTURA\n($)","\nEMPRESA PROVEEDORA DEL SERVICIO ","ESTADO DE LA LINEA","OBSERVACIONES"]
[]
[null,null,null,null,null,null,null,null,null,null,null,null,null,null,null,null,{"$f":"SUM(I9:P9)","v":0}]
[null,null,null,null,null,null,null,null,null,null,null,null,null,null,null,null,{"$f":"SUM(I10:P10)","v":0}]
[null,null,null,null,null,null,null,null,null,null,null,null,null,null,null,null,0]
[null,null,null,null,null,null,null,null,null,null,null,null,null,null,null,null,0]
[null,null,null,null,null,null,null,null,null,null,null,null,null,null,null,null,0]
[null,null,null,null,null,null,null,null,null,null,null,null,null,null,null,null,0]
[null,null,null,null,null,null,null,null,null,null,null,null,null,null,null,null,0]
[null,null,null,null,null,null,null,null,null,null,null,null,null,null,null,null,0]
[null,null,null,null,null,null,null,null,null,null,null,null,null,null,null,null,0]
[null,null,null,null,null,null,null,null,null,null,null,null,null,null,null,null,0]
[null,null,null,null,null,null,null,null,null,null,null,null,null,null,null,null,0]
[null,null,null,null,null,null,null,null,null,null,null,null,null,null,null,null,0]
[null,null,null,null,null,null,null,null,null,null,null,null,null,null,null,null,0]
[null,null,null,null,null,null,null,null,null,null,null,null,null,null,null,null,0]
[null,null,null,null,null,null,null,null,null,null,null,null,null,null,null,null,0]
[null,null,null,null,null,null,null,null,null,null,null,null,null,null,null,null,0]
[null,null,null,null,null,null,null,null,null,null,null,null,null,null,null,null,0]
[null,null,null,null,null,null,null,null,null,null,null,null,null,null,null,null,0]
[null,null,null,null,null,null,null,null,null,null,null,null,null,null,null,null,0]
[null,null,null,null,null,null,null,null,null,null,null,null,null,null,null,null,0]
[null,null,null,null,null,null,null,null,null,null,null,null,null,null,null,null,0]
[null,null,null,null,null,null,null,null,null,null,null,null,null,null,null,null,0]
["TOTALES",null,null,null,null,null,null,null,{"$f":"SUM(I9:I30)","v":0},{"$f":"SUM(J9:J30)","v":0},{"$f":"SUM(K9:K30)","v":0},0,0,null,0,0,{"$f":"SUM(Q9:Q30)","v":0}]
["Antes de imprimir este documento… piense en el medio ambiente!  \n     Cualquier copia impresa de este documento se considera como COPIA NO CONTROLADA."]

{"sheet":"Listas","index":4,"n_rows":38,"n_cols":5,"rows_kept":38,"cut":false,"hidden":true,"merged":[]}
["REGIONALES","MESES","PERIODICIDAD DE LA FACTURACIÓN","ESTADO DE LINEA","CONDICIONES DEL INMUEBLE"]
["AMAZONAS","ENERO","MENSUAL","ACTIVA EN USO","ARRIENDO "]
["ANTIOQUIA","FEBRERO","BIMESTRAL","ACTIVA SIN USO","PROPIO"]
["ARAUCA","MARZO","TRIMESTRAL","CANCELADA","DESOCUPADO"]
["ATLÁNTICO","ABRIL","CUATRIMESTRAL",null,"RECIBIDO EN COMODATO"]
["BOGOTÁ","MAYO","SEMESTRAL",null,"ENTREGADO EN COMODATO"]
["BOLIVAR","JUNIO","ANUAL ",null,"INVADIDO"]
["BOYACÁ","JULIO",null,null,"OTROS"]
["CALDAS","AGOSTO"]
["CAQUETÁ","SEPTIEMBRE"]
["CASANARE","OCTUBRE"]
["CAUCA","NOVIEMBRE"]
["CESAR","DICIEMBRE"]
["CHOCÓ "]
["CORDOBA"]
["CUNDINAMARCA"]
["GUAINIA"]
["GUAJIRA"]
["GUAVIARE"]
["HUILA"]
["MAGDALENA"]
["META"]
["NARIÑO"]
["NORTE DE SANTANDER"]
["PUTUMAYO"]
["QUINDIO"]
["RISARALDA"]
["SAN ANDRÉS"]
["SANTANDER"]
["SUCRE"]
["TOLIMA"]
["VALLE"]
["VAUPES"]
["VICHADA"]
["APOYO LOGÍSTICO"]
["G. BIENES"]
["INFRAESTRUCTURA"]
["G. DOCUMENTAL"]

{"sheet":"INSTRUCCIONES","index":5,"n_rows":89,"n_cols":4,"rows_kept":89,"cut":false,"hidden":false,"merged":[[77,1,77,3],[78,1,78,3],[79,1,79,3],[69,1,69,3],[71,1,71,3],[72,1,72,3],[73,1,73,3],[70,1,70,3],[74,1,74,3],[75,1,75,3],[0,0,2,0],[0,1,2,1],[2,2,2,3],[76,1,76,3],[63,1,63,3],[64,1,64,3],[65,1,65,3],[66,0,67,3],[68,1,68,3],[58,1,58,3],[59,1,59,3],[60,1,60,3],[61,1,61,3],[62,1,62,3],[53,1,53,3],[54,1,54,3],[88,0,91,3],[80,1,80,3],[81,1,81,3],[82,1,82,3],[83,1,83,3],[85,1,85,3],[87,1,87,3],[55,1,55,3],[56,1,56,3],[57,1,57,3],[47,0,48,3],[49,1,49,3],[50,1,50,3],[52,1,52,3],[51,1,51,3],[42,1,42,3],[43,1,43,3],[44,1,44,3],[45,1,45,3],[46,1,46,3],[37,1,37,3],[38,1,38,3],[39,1,39,3],[40,1,40,3],[41,1,41,3],[32,1,32,3],[33,1,33,3],[34,1,34,3],[35,1,35,3],[36,1,36,3],[27,1,27,3],[28,1,28,3],[29,1,29,3],[30,1,30,3],[31,1,31,3],[21,1,21,3],[22,1,22,3],[23,1,23,3],[24,1,24,3],[25,0,26,3],[16,1,16,3],[17,1,17,3],[18,1,18,3],[19,1,19,3],[20,1,20,3],[3,0,4,3],[5,1,5,3],[6,1,6,3],[8,1,8,3],[7,1,7,3],[14,1,14,3],[15,1,15,3],[9,1,9,3],[10,1,10,3],[11,1,11,3],[12,1,12,3],[13,1,13,3]]}
[null,"PROCESO SERVICIOS ADMINISTRATIVOS\n\nINFORME DE SERVICIOS PUBLICOS","F1.P59.SA","2020-08-26"]
[null,null,"Versión 1","Página 1 de 1"]
[null,null,"Clasificación de la Información\nPÚBLICA"]
["INSTRUCCIONES HOJA ACUEDUCTO"]
[]
["CONCEPTO","DESCRIPCION "]
["NOMBRE REGIONAL, CENTRO ZONAL  O INMUEBLE","Nombre de la Regional, centro zonal o inmueble."]
["DIRECCION","Dirección correcta del inmueble (debe coincidir con la registrada en la factura)"]
["CONDICIONES DEL INMUEBLE","Desplegar la lista y elegir: Arriendo, propio en uso o desocupado o comodato. Es importante que los inmuebles que no estan siendo usados sean debidamente identificados. "]
["PERIOCIDAD DE LA FACTURACION","Desplegar la lista y elegir: mensual, bimestral, trimestral, semestral, anual. "]
["NÚMERO DE FACTURA","No. de la factura completa (puede contener letras y números)"]
["FECHA PAGO OPORTUNO FACTURA (DD/MM/AA)","Diligenciar solo en formato de fecha corta (DD/MM/AA), ejemplo: 29/01/2018 que se traduce a: 29 de enero de 2018"]
["PERIODO FACTURADO","Fechas entre las cuales se facturo el servicio "]
["MES FACTURADO","De acuerdo al rango de fechas, informar a que mes corresponde"]
["CONSUMO Mᶾ","Se registra el consumo en metros cubicos "]
["CARGO FIJO $","Se relaciona el valor registrado en la factura como cargo fijo, de manera independiente acueducto, alcantarillado y aseo"]
["CONSUMO $","Se relaciona el valor registrado como consumo del mes de manera independiente acueducto, alcantarillado y aseo. Incluye Consumo básico, complementario y suntuario"]
["DEUDA ANTERIOR ($)","Saldos adeudados por acueducto, alcantarillado y aseo"]
["INTERESES ($)","Valores cobrados por intereses por mora"]
["RECONEXIÓN ($)","Valores cobrados por reconexiones."]
["CONTRIBUCIONES, SUBSIDIOS, TASAS, COMPENSACIONES Y AJUSTES ($)","Diligenciar información pertinente"]
["IMPUESTOS ($)","Todos los impuestos como IVA, Impuesto al teléfono, etc., excepto impuesto al alumbrado público. Este se ubica en la columna destinada para ello. "]
["CARGOS POR CONTADORES Y  OBRAS DEL SERVICIO ($)","Diligenciar cobros por la compra de contadores, el cambio, mantenimiento y revisión del mismo, así como los gastos por obras del mismo servicio. "]
["EMPRESA PROVEEDORA DEL SERVICIO","Relacionar el nombre de la empresa prestadora del servicio"]
["OBSERVACIONES","Aquí plasmar observaciones relevantes"]
["INSTRUCCIONES HOJA ENERGÍA"]
[]
["CONCEPTO","DESCRIPCION "]
["NOMBRE REGIONAL, CENTRO ZONAL  O INMUEBLE","Nombre de la Regional, centro zonal o inmueble."]
["DIRECCION","Dirección correcta del inmueble (debe coincidir con la registrada en la factura)"]
["CONDICIONES DEL INMUEBLE","Desplegar la lista y elegir: Arriendo, propio en uso o desocupado o comodato. Es importante que los inmuebles que no estan siendo usados sean debidamente identificados. "]
["PERIOCIDAD DE LA FACTURACION","Desplegar la lista y elegir: mensual, bimestral, trimestral, semestral, anual. "]
["NÚMERO DE FACTURA","No. de la factura completa (puede contener letras y números)"]
["FECHA PAGO OPORTUNO ","Diligenciar solo en formato de fecha corta (DD/MM/AA), ejemplo: 29/01/2018 que se traduce a: 29 de enero de 2018"]
["PERIODO FACTURADO","Fechas entre las cuales se facturo el servicio "]
["MES FACTURADO","De acuerdo al rango de fechas, informar a que mes corresponde"]
["CONSUMO Kw","Se registra el consumo en metros cubicos "]
["CARGO FIJO $","Se relaciona el valor registrado en la factura como cargo fijo, de manera independiente acueducto, alcantarillado y aseo"]
["CONSUMO $","Se relaciona el valor registrado como consumo del mes de manera independiente acueducto, alcantarillado y aseo. Incluye Consumo básico, complementario y suntuario"]
["DEUDA ANTERIOR ($)","Saldos adeudados por acueducto, alcantarillado y aseo"]
["INTERESES ($)","Valores cobrados por intereses por mora"]
["RECONEXIÓN ($)","Valores cobrados por reconexiones."]
["CONTRIBUCIONES, SUBSIDIOS, TASAS, COMPENSACIONES Y AJUSTES ($)","Diligenciar información pertinente"]
["IMPUESTOS ($)","Todos los impuestos como IVA, Impuesto al teléfono, etc., excepto impuesto al alumbrado público. Este se ubica en la columna destinada para ello. "]
["CARGOS POR CONTADORES Y  OBRAS DEL SERVICIO ($)","Diligenciar cobros por la compra de contadores, el cambio, mantenimiento y revisión del mismo, así como los gastos por obras del mismo servicio. "]
["EMPRESA PROVEEDORA DEL SERVICIO","Relacionar el nombre de la empresa prestadora del servicio"]
["OBSERVACIONES","Aquí plasmar observaciones relevantes"]
["INSTRUCCIONES HOJA GAS"]
[]
["CONCEPTO","DESCRIPCION "]
["NOMBRE REGIONAL, CENTRO ZONAL  O INMUEBLE","Nombre de la Regional, centro zonal o inmueble."]
["DIRECCION","Dirección correcta del inmueble (debe coincidir con la registrada en la factura)"]
["CONDICIONES DEL INMUEBLE","Desplegar la lista y elegir: Arriendo, propio en uso o desocupado o comodato. Es importante que los inmuebles que no estan siendo usados sean debidamente identificados. "]
["NÚMERO DE FACTURA","Colocar el No. de la factura completa (puede contener letras y números)"]
["FECHA PAGO OPORTUNO ","Diligenciar solo en formato de fecha corta (DD/MM/AA), ejemplo: 29/01/2018 que se traduce a: 29 de enero de 2018"]
["CONSUMO Mᶾ","Se registra el consumo en metros cubicos "]
["CARGO FIJO $","Se relaciona el valor registrado en la factura como cargo fijo"]
["CONSUMO $","Se relaciona el valor registrado como consumo variable"]
["DEUDA ANTERIOR ($)","Saldos adeudados por acueducto, alcantarillado y aseo"]
["INTERESES ($)","Valores cobrados por intereses por mora"]
["RECONEXIÓN ($)","Valores cobrados por reconexiones."]
["CONTRIBUCIONES, SUBSIDIOS, TASAS, COMPENSACIONES Y AJUSTES ($)","Diligenciar información pertinente"]
["IMPUESTOS ($)","Todos los impuestos como IVA, Impuesto al teléfono, etc., excepto impuesto al alumbrado público. Este se ubica en la columna destinada para ello. "]
["CARGOS POR CONTADORES Y  OBRAS DEL SERVICIO ($)","Diligenciar cobros por la compra de contadores, el cambio, mantenimiento y revisión del mismo, así como los gastos por obras del mismo servicio. "]
["EMPRESA PROVEEDORA DEL SERVICIO","Relacionar el nombre de la empresa prestadora del servicio"]
["OBSERVACIONES","Aquí plasmar observaciones relevantes"]
["INSTRUCCIONES HOJA TELEFONÍA FIJA"]
[]
["CONCEPTO","DESCRIPCION "]
["NOMBRE REGIONAL, CENTRO ZONAL  O INMUEBLE","Nombre de la Regional, centro zonal o inmueble."]
["DIRECCION","Dirección correcta del inmueble (debe coincidir con la registrada en la factura)"]
["CONDICIONES DEL INMUEBLE","Desplegar la lista y elegir: Arriendo, propio en uso o desocupado o comodato. Es importante que los inmuebles que no estan siendo usados sean debidamente identificados. "]
["NÚMERO TELEFÓNICO","Colocar No. Correcto y completo de la línea telefónica"]
["NÚMERO DE FACTURA","Colocar el No. de la factura completa (puede contener letras y números)"]
["PERIODO FACTURADO","Fechas entre las cuales se facturo el servicio "]
["MES FACTURADO","De acuerdo al rango de fechas, informar a que mes corresponde"]
["FECHA PAGO OPORTUNO FACTURA (DD/MM/AA)","Diligenciar solo en formato de fecha corta (DD/MM/AA), ejemplo: 29/01/2018 que se traduce a: 29 de enero de 2018"]
["CARGO FIJO + BÁSICO","Se relaciona el valor registrado en la factura como cargo fijo + básico"]
["CARGO VARIABLE","Todos los cargos adicionales como voz "]
["DEUDA ANTERIOR","Saldos adeudados por acueducto, alcantarillado y aseo"]
["INTERNET","Valores por este concepto. "]
["INTERESES ($)","Valores cobrados por intereses por mora"]
["RECONEXIÓN ($)","Valores cobrados por reconexiones."]
["CONTRIBUCIONES, SUBSIDIOS, TASAS, COMPENSACIONES Y AJUSTES ($)","Diligenciar información pertinente"]
["IMPUESTOS ($)","Impuesto al teléfono e impuesto al IVA"]
["EMPRESA PROVEEDORA DEL SERVICIO","Relacionar el nombre de la empresa prestadora del servicio"]
["ESTADO LÍNEA","Elegir de la lista desplegable"]
["OBSERVACIONES","Aquí plasmar observaciones relevantes"]
["Antes de imprimir este documento… piense en el medio ambiente!  \n     Cualquier copia impresa de este documento se considera como COPIA NO CONTROLADA."]

{"sheet":"Hoja3","index":6,"n_rows":0,"n_cols":0,"rows_kept":0,"cut":false,"hidden":true,"merged":[]}

{"sheet":"Hoja2","index":7,"n_rows":0,"n_cols":0,"rows_kept":0,"cut":false,"hidden":true,"merged":[]}